Workbook

Sheet Read Me
A1: Air Pollution Control Cost Estimation Spreadsheet
A2: For Wet and Dry Scrubbers for Acid Gas Control
A3: U.S. Environmental Protection Agency
A4: Air Economics Group
A5: Health and Environmental Impacts Division
A6: Office of Air Quality Planning and Standards
A7: (May 2021)
B9: This spreadsheet allows users to estimate the capital and annualized costs for installing and operating scrubbers for reducing sulfur dioxide and acidic gas emissions from fossil fuel-fired combustion units and other industrial sources of acid gases.
B11: The calculation methodologies used in this spreadsheet are those presented in the U.S. EPA's Air Pollution Control Cost Manual. This spreadsheet is intended to be used in combination with the acid gas absorber chapter and cost estimation methodology in the Control Cost Manual. For a detailed description of acid gas absorbers and the cost methodologies, see Section 5, Chapter 1 (Wet and Dry Scrubbers for Acid Gas Control) of the Air Pollution Control Cost Manual (as updated in 2021). A copy of the Control Cost Manual is available on the U.S. EPA's "Technology Transfer Network" website at: https://www.epa.gov/economic-and-cost-analysis-air-pollution-regulations/cost-reports-and-guidance-air-pollution.
B13: This spreadsheet can be used to estimate capital and annualized costs for three types of acid gas scrubbers:
B15: (1) | C15: Wet flue gas desulfurization (WFGD) systems used to control SO2 emissions from coal-fired utility boilers over 100 MW.
B16: (2) | C16: Spray dryer absorber (SDA) used to control SO2 emissions from coal-fired utility boilers of equal to or greater than 50 MW.
B17: (3) | C17: Wet packed-bed scrubbers used to control acid gases from industrial emission sources of any size.
B19: WFGD and SDA Control Systems The methodologies for WFGD and SDA systems are based on those from the U.S. EPA Clean Air Markets Division (CAMD)'s Integrated Planning Model (IPM version 6). The size and costs of a WFGD and SDA are based primarily on the size of the combustion unit and the sulfur content of the coal burned. The WFGD methodology include cost algorithms for capital and operating cost for wastewater treatment consisting of chemical pretreatment, low hydraulic residence time biological reduction and ultrafiltration to treat wastewater generated by the WFGD system. The IPM equations estimate the purchased equipment cost and the direct and indirect installation costs based on cost data for multiple lump-sum contracts. Turnkey contracts where the price is fixed at the time the contract is signed and the contractor undertakes responsibility for the completion of the project, are generally 10 to 15% higher than the multiple lump-sum contracts. For additional information regarding the IPM, see the EPA Clean Air Markets webpage at http://www.epa.gov/airmarkets/power-sector-modeling. Users should complete the Wet & Dry FGD Data Inputs tab to estimate costs for WFGD and SDA systems.
B21: Packed-Bed Scrubbers The cost methodology for wet packed-bed scrubbers can be used for estimating costs for any size of packed tower absorber used to control flue gas containing any acidic pollutants (e.g., HCl and HF). The capital and operating costs are based on the waste gas composition and properties of the pollutant and sorbent. The waste gas is assumed to comprise a two-component waste gas mixture (pollutant/air), where the pollutant consists of a single compound present in dilute quantities. The waste gas is assumed to behave as an ideal gas and the solvent is assumed to behave as an ideal solution. Heat effects associated with absorption are considered to be minimal due to the low pollutant concentration. The procedures also assume that, in chemical absorption, the process is not reaction rate limited, i.e., the reaction of the pollutant with the solvent is considered fast compared to the rate of absorption of the pollutant into the solvent. Users should complete the PB Scrubber Data Inputs tab to estimate costs for packed-bed scrubbers.
B22: The calculations provide study-level estimates (±30%) of capital and annual costs. Default values included in the spreadsheet are taken from the Control Cost Manual and other sources, such as the U.S. Energy Information Administration (EIA), and are included only as an example of how to complete the data inputs sheets. The actual costs may vary from those calculated here due to site-specific conditions. Selection of the most cost-effective control option should be based on a detailed engineering study and cost quotations from control system suppliers.
B24: Instructions
B25: Step 1: Please select the FGD Data Inputs or PB Scrubber Data Inputs tab. Click he Reset Form button at the top of the sheet to reset all parameters to default values.
B26: Step 2: Complete the cells highlighted in yellow. The highlighted cells are pre-populated with example or default values. Users should replace the pre-populated values with current values for each parameter that are specific to the facility. All data entry fields in the PB Scrubber Data Inputs tab should be completed. While most fields in the FGD Data Inputs tab apply to both WFGD and SDA systems, a few data entry fields are specific to the type of control system and may be left blank if the user does not wish to estimate costs for both systems. References documenting the source of each value should be documented in the Data Sources for Default Values Used in Calculations located on the FGD Data Inputs and PB Scrubber Data Inputs tabs.
B27: Step 3: Once all of the data fields are complete, select the SDA Design Parameters, WFGD Design Parameters, or PB Scrubber Design Parameters tab (as applicable) to see the calculated design parameters. Select the SDA Cost Estimate, WFGD Cost Estimate, or PB Scrubber Cost Estimate tabs to view the calculated cost data for the installation and operation of the scrubber.

Sheet Wet & Dry FGD Data Inputs
A1: Data Inputs for Spray Dryer Absorber and Wet FGD
A3: Enter the following data for your combustion unit:
B5: Is the FGD for a new boiler or retrofit of an existing boiler?
R6: Retrofit Box
B7: Please enter a retrofit factor. Enter 1 for projects of average difficulty. Enter values >1 for more difficult retrofits and enter <1 for less difficult retrofits. | G7: 1 | H7: =IF(G7>1, "* NOTE: You must document why a retrofit factor of "&G7&" is appropriate for the proposed project.", " ") -> 
A8: Directions: Enter data in highlighted data fields. | R8: New Construction | S8: 3
R9: Retrofit
B10: What is the gross MW rating at full load capacity (A)? | C10: =295600*0.8573/8589 -> 29.50493422 | D10: MW
A12: Provide the following information for the coal burned:
B13: Select type of coal burned: | R13: Select Coal Type
R14: Bituminous | S14: 3
B15: Enter the sulfur content (%S) | D15: percent by weight | E15: OR | F15: SO2 Emissions (SO2in) | H15: 0.2 | I15: lb/MMBtu | J15: =IF(AND(C15>0,H15>0),"*Note: If you enter values for both sulfur content and SO2 emission rate, the SO2 emission rate in lbs/MMBtu will be used to estimate costs."," ") ->  | R15: Sub-Bituminous
C16: =IF(OR(C15>0,H15>0)," ","*You must enter a value for either percent sulfur content or SO2 emission rate!") ->  | R16: Lignite
B17: Oulet SO2 Emissions (SO2out) | C17: 0.01 | D17: lb/MMBtu | R17: Coal blend
B19: For units burning coal blends: | R19: Landfill? | S19: 3
B20: The table below is pre-populated with default values for HHV and percent sulfur. Please enter the actual values for these parameters in the table below. If the actual value for any parameter is not known, you may use the default values provided.
B21: Coal Blend Composition Table | R21: Onsite Landfill
C22: Fraction in Coal Blend | D22: Percent Sulfur | E22: HHV (Btu/lb) | G22: Calculated sulfur content of coal blend | I22: 0 | J22: percent | R22: Offsite Landfill
B23: Bituminous | C23: 0 | D23: 1.84 | E23: 11841
B24: Sub-Bituminous | C24: 0 | D24: 0.41 | E24: 8826
B25: Lignite | C25: 0 | D25: 0.82 | E25: 6626
B27: Please click the calculate button to calculate weighted values based on the data in the table above. | R27: 2 | S27: Yes
R28: Note: If P25= Yes, then BTF = 0.75 for fluid bed boilers; Else BTF=1 | S28: No
C30: =IF(C17>0," ","*You must enter a value for the outlet SO2 emission rate!") -> 
B32: What is the higher heating value of the fuel (HHV)? | D32: Btu/lb | E32: =IF(H15>0,"*Note: You do not need to enter a value for the HHV since you entered SO2 emissions in lb/MMBtu above"," ") -> *Note: You do not need to enter a value for the HHV since you entered SO2 emissions in lb/MMBtu above
B33: =IF(C32=M23,"*HHV is the weighted average value calculated using the values entered in the coal blend composition table.",(IF(OR(C32=C77,C32=1033,C32=11814,C32=6534,C32=8730,C32=141468),"*HHV value of "&C32&" "&D32&" is a default value. See below for data source. Enter actual HHV for fuel burned, if known. "," "))) -> *HHV is the weighted average value calculated using the values entered in the coal blend composition table.
B34: What is the estimated actual annual MWh output? | C34: =C10*C44 -> 258463.2238 | D34: MWh
B36: Waste from a WFDG system disposed in an onsite or offsite landfill?
B38: Gross heat input rate (GHR) | C38: =295.6/C10 -> 10.01866325 | D38: MMBtu/MWh
A42: Enter the following design parameters for the proposed FGD System:
B44: Number of hours the scrubber operates (tABS) | C44: 8760 | D44: Hours | G44: Plant Elevation | I44: 446 | J44: Feet above sea level
B45: Number of hours the boiler operates (tplant) | C45: 8760 | D45: Hours
B46: Number of Full Time Operators (FT):
B47: SDA System
B48: WFGD system | C48: 6
B49: Estimated equipment life:
B50: SDA System | D50: Years
B51: Wet FGD System | C51: 30 | D51: Years
B52: Estimated equipment life for mercury monitor for wastewater treatment system for Wet FGD Systems | C52: 6 | D52: Years
A54: Enter the cost data for the proposed FGD System:
B56: Desired dollar-year for Capital Costs | C56: 2022
B57: ="CEPCI for " & C56 -> CEPCI for 2022 | C57: 708 | D57: =IF(C56=2016," ","Enter the CEPCI value for "&C56) -> Enter the CEPCI value for 2022 | F57: 541.7 | G57: 2016 CEPCI*
B58: Annual Interest Rate (i) | C58: 7.5 | D58: =IF(C58=3.25, "Percent**", "Percent") -> Percent | E58: =IF(C58=3.25,"** 3.25 percent is the default bank prime rate. User should enter current bank prime rate (available at https://www.federalreserve.gov/releases/h15/.)"," ") -> 
B59: Sorbent Cost:
B60: Lime (for SDA) | D60: $/ton of Lime
B61: Limestone (for Wet FGD) | C61: 288 | D61: $/ton of Limestone
B62: Water (Costwater) | C62: 0.01217 | D62: ="$/gallon"&(IF(C62=0.00417, "*"," ")) -> $/gallon
B63: Electricity (Costelect) | C63: 0.205 | D63: ="$/kWh"&(IF(OR(C63=0.0676, C63=0.0361), "*"," ")) -> $/kWh
B64: Waste Disposal cost (Costwaste) | C64: 257 | D64: ="$/ton"&(IF(C64=48.8, "*","")) -> $/ton
B65: Labor Rate | C65: 49 | D65: $/hour
B66: Purchase Equipment Cost for Mercury Monitor for wastewater treatment System (MMCost) | C66: 0 | D66: $/monitor
B67: *Note: CEPCI = Chemical Engineering Plant Cost Index. The use of CEPCI in this spreadsheet is not an endorsement of the index, but is there merely to allow for availability of a well-known cost index to spreadsheet users. Use of other well-known cost indexes (e.g., M&S) is acceptable.
A69: Data Sources for Default Values Used in Calculations:
B71: Data Element | C71: Default Value | D71: Sources for Default Value | J71: If you used your own site-specific values, please enter the value used and the reference source . . . | O71: Recommended data sources for site-specific information
B72: Lime ($/ton) | C72: 125 | D72: U.S. Environmental Protection Agency (EPA). Documentation for EPA's Power Sector Modeling Platform v6 Using the Integrated Planning Model. Office of Air and Radiation. January 2017. Available at: https://www.epa.gov/airmarkets/documentation-epas-power-sector-modeling-platform-v6. | J72: Not applicable | O72: N/A
B73: Limestone ($/ton) | C73: 30 | D73: U.S. Environmental Protection Agency (EPA). Documentation for EPA's Power Sector Modeling Platform v6 Using the Integrated Planning Model. Office of Air and Radiation. January 2017. Available at: https://www.epa.gov/airmarkets/documentation-epas-power-sector-modeling-platform-v6. | J73: $288/ton was used. This information was provided by UAF personnel for the limestone currently delivered to site and being burned in the boiler. Additional refinement needs to be accounted for as the current limestone particle sizes are too big for the a WFGD slurry feed stream. It is assumed that any particle refinement is being accounted for in the Reagent Preparation Equipment Costs that are calculated in the "WFGD Cost Estimate" tab. It is not fully understood what equipment is included in the EPA provided costs. If additional milling is not part of the Reagent Preparation Equipment Costs, then additional pricing of a mill should be included. For this scenario, additional pricing for a mill was not included. | O73: Check with reagent vendors for current prices.
B74: Water Cost ($/gallon) | C74: 0.0042 | D74: Average water rates for industrial facilities (compiled by Black & Veatch. See '50 Largest Cities Water/Wastewater Rate Survey - 2018-2019.'Available at www.bv.com/sites/default/files/2019-10/50_Largest_Cities_Rate_Survey_2018_2019_Report.pdf. | J74: $0.0122/gallon of water pricing was provided by UAF Facility Services Utility Rates for 2022 | O74: Plant's utility bill or Black & Veatch's "50 Largest Cities Water/Wastewater Rate Survey." Available at http://www.saws.org/who_we_are/community/RAC/docs/2014/50-largest-cities-brochure-water-wastewater-rate-survey.pdf. .
B75: Electricity Cost ($/kWh) | C75: 0.0361 | D75: U.S. Energy Information Administration. Electric Power Annual 2016, Table 8.4, Published December 2017. Available at: https://www.eia.gov/electricity/annual/pdf/epa.pdf | J75: $0.2050/kWh electricity pricing was provided by UAF Facility Services Utility Rates for 2022 | O75: Plant's utility bill or use U.S. Energy Information Administration (EIA) data for most recent year. Available at http://www.eia.gov/electricity/data.cfm#sales.
B76: Waste Disposal Cost ($/ton) | C76: 30 | D76: U.S. Environmental Protection Agency (EPA). Documentation for EPA's Power Sector Modeling Platform v6 Using the Integrated Planning Model. Office of Air and Radiation. January 2017. Available at: https://www.epa.gov/airmarkets/documentation-epas-power-sector-modeling-platform-v6. | J76: $257/ton. Ash hauling rates provided by UAF personnel ranged from $220-$293/ton. The variance is mostly attributed to the moisture content in the ash as well as the water added prior to load out to mitigate dust during transportation. $257 was used as it was an average of the low and high value. Email dated 7/8/22 from Frances Isgrigg (UAF) to Mark Payne (SCI) and Courtney Kimball (Boreal). It should be noted that the ash disposal does not include any additional costs for regulated or hazardous waste pollutants that may be captured during the WFGD process. The ash hauling rates being used in the spreadsheet may or may not increase due to additional pollutants in the ash. We believe that using the current average ash hauling rate will provide a conservatively low effective cost for SO2 removal per year. | O76: Check with reagent vendors for current prices.
B77: Higher Heating Value (HHV) (Btu/lb) | C77: 8826 | D77: Average HHV based 2016 coal data compiled by the Office of Oil, Gas, and Coal Supply Statistics, U.S. Energy Information Administration (EIA) from data reported on EIA Form EIA-923, Power Plant Operations Report. Available at http://www.eia.gov/electricity/data/eia923/. | J77: N/A. Value was not needed as SO2 content was specified as lb/MMBtu. | O77: Fuel supplier or use U.S. Energy Information Administration (EIA) data for most recent year. Available at http://www.eia.gov/electricity/data/eia923/.
B78: Average Sulfur Content (%) | C78: 0.41 | D78: Average sulfur content based on U.S. coal data for 2016 compiled by the U.S. Energy Information Administration (EIA) from data reported on EIA Form EIA-923, Power Plant Operations Report. Available at http://www.eia.gov/electricity/data/eia923/. | J78: Sulfur content is not being used because inlet SO2 emissions are provided instead. The inlet SO2 emission rate is 0.20 lb/MMBtu per Condition 13.1 of Permit AQ0316MSS06 Revision 2. That emission rate is the basis of the SO2 PTE for EU 113 (258.9 tpy per Condition 13 of Permit AQ0316MSS06 Revision | O78: Fuel supplier or use U.S. Energy Information Administration (EIA) data for most recent year. Available at http://www.eia.gov/electricity/data/eia923/.
B79: Interest Rate | C79: 3.25 | D79: Default bank prime rate March 2, 2021 (available as the rates listed under 'bank prime loan' at https://www.federalreserve.gov/releases/h15/). | J79: 7.50%. Updated prime rate as of December 27, 2022. | O79: Use current bank prime rate available at https://www.federalreserve.gov/releases/h15/.
B80: Hourly Labor Rate ($/hour) | C80: 60 | D80: U.S. Environmental Protection Agency (EPA). Documentation for EPA's Power Sector Modeling Platform v6 Using the Integrated Planning Model. Office of Air and Radiation. January 2017. Available at: https://www.epa.gov/airmarkets/documentation-epas-power-sector-modeling-platform-v6. | J80: $49/hour. Value provided by Frances Isgrigg (UAF). This is a burdened rate of an individual who would be working on this equipment at the plant. | O80: Plant data.
B81: Data Element | C81: Default Value | D81: Sources for Default Value | J81: If you used your own site-specific values, please enter the value used and the reference source . . . | O81: Recommended data sources for site-specific information
A82: Cell C10 | B82: Gross MW rating at full load capacity | C82: N/A | D82: The facility at UAF was designed and constructed as a Combined Heat Power facility which serves the University in two ways; providing distribution steam for campus heating and other processes, and electricity for electrical demand on the campus. The Boiler and Steam Turbine at UAF were design as a bottoming cycle facility which means that the boiler is ramped as needed to meet the amount of steam heating that is required on campus. The left over steam is sent to the steam turbine to convert the remaining energy to electricity. This differs to a traditional power plant that uses all of it's generated steam to generate electricity with little to no distribution of steam for processes or users. In order to utilize the EPA spreadsheet, a theoretical MW value needed to be calculated for the CHP facility. To calculate an electrical generation power plant equivalency, we used the BTU input of the Boiler (total coal flow into the boiler), then using the Boiler efficiency which equates the amount of BTU's that the boiler captures in the steam cycle. These BTU's were then divided by the Steam Turbine efficiency, also know has Heat Rate (BTU/kW) which yields a theoretical MW value based on how the steam turbine can convert BTU's to kW. The resultant was used as a electrical "equivalent" in the spreadsheet. It should be noted that the facility has no way of generating the calculated theoretical MW value as the existing Steam Turbine cannot operate beyond it's 17MW nameplate. | J82: Value used: 29.5 MW "CHPP MW Equivalent" = Boiler BTU Input x Boiler Efficiency / Steam Turbine Heat Rate. Boiler input: 295,600,000 lb/hr (Provided by B&W) Boiler efficiency: 85.73% (Provided by B&W) Steam Turbine efficiency: 8,589 Btu/kWh (Provided by Shin Nippon)
A83: C17 | B83: Oulet SO2 Emissions (SO2out) (lb/mmbtu) | C83: N/A | D83: SO2 output emissions | J83: 0.01 lb/mmbtu was entered to show the WFGD efficiency at 95%
A84: Cell C34 | B84: Annual MWH output | C84: N/A | D84: This calculates the total MWh produced by the boiler. This was calculated using electrical capacity equivalent MW (rating) and multiplying by 8,760 hours per year for an annual MWh output | J84: 258,463 MWh Annual MWh output = Capacity x hours of operation/year Annual MWh output = 29.50MW x 8,760 hours/year
A85: Cell C38 | B85: Gross heat input rate | C85: N/A | D85: This calculates the total amount of heat input into the boiler by the coal per MW electrical capacity. Values of the equation include: Permitted Maximum Heat Input into the Boiler (MMBtu/hr) / MW capacity | J85: 10.02 MMBTU/MWh Gross Heat Input Rate (GHIR) = Max Heat Input / MW capacity GHIR = 295.6 MMBtu/hr / 29.5 MW GHIR = 10.02 MMBTU/MWh
A86: Cell C44 | B86: Number of hours of Scrubber Operation | C86: N/A | D86: Value set at total hours that Scrubber can operate per year, but no more than Boiler operation. | J86: 8,760 hours in one year.
A87: Cell C45 | B87: Number of hours of Boiler Operation | C87: N/A | D87: Value set at total hours that Boiler can operate per year. | J87: 8,760 hours in one year.
A88: Cell C47 | B88: SDA System Full Time Operators | C88: 8 | D88: EPA recommended default value of 8 operators for SDA system. | J88: Not applicable
A89: Cell C48 | B89: WFDG System Full Time Operators | C89: 12 | D89: EPA recommended default value of 12 operators for WFGD system (<500MW plant size) | J89: Value used: 6 The EPA default value is 12 for a plant that is between 100 MW and 500 MW. The theoretical electrical capacity of the UAF CHPP is 29.5 MW. Based on the size of the equipment and the EPA recommendation, the value was set at 6 operators. The plant operates and staff's the plants operation for Monday thru Sunday, 24 hours per day. The plant has a total of 4 shifts available during the week (2 weekly sections, with each weekly section staffed during the day and separately at night). WFGD's are material handling intensive and require support during material offloading, material transfer, material batching and during operational hours. 6 Full time operators averages to 1.25 fulltime equivalents during each shift. It should be noted that the sensitivity of operators on a WFGD cost effectiveness result is some what small. The difference in effectiveness between the currently used 6 operators and using no new additional operators is roughly $2,500/ton of SO2 removed ($28,500 to $26,000).
A90: Cell C57 | B90: CEPCI for 2022 | C90: N/A | D90: Provide latest Chemical Engineering Plant Cost Index (CEPCI) | J90: Value used: 708 Value was taken from Chemical Engineering magazine, August 2022 Issue. Value was provided as a final 2021 index number.

Sheet WFGD Design Parameters
A1: Wet FGD Design Parameters
A3: The following design parameters for the wet FGD system were calculated based on the values entered on the FGD Data Inputs tab. These values were used to prepare the costs shown on the Wet FGD Cost Estimate tab.
A5: Parameter | B5: Equation | C5: Calculated Value | D5: Units
A6: Maximum Annual Heat Input Rate (QB) = | B6: A x GHR = | C6: ='Wet & Dry FGD Data Inputs'!C10*'Wet & Dry FGD Data Inputs'!C38 -> 295.6 | D6: MMBtu/hour
A7: Maximum Annual MWh Output (BMW) = | B7: A x 8760 = | C7: ='Wet & Dry FGD Data Inputs'!C10*8760 -> 258463.2238 | D7: MWh
A8: Estimated Actual Annual MWh Output (Boutput) = | B8: Value entered by user | C8: ='Wet & Dry FGD Data Inputs'!C34 -> 258463.2238 | D8: MWh
A9: Heat Rate Factor (HRF) = | B9: Gross Plant Heat Rate/10 = | C9: ='Wet & Dry FGD Data Inputs'!C38/10 -> 1.001866325
A10: Total System Capacity Factor (CFtotal) = | B10: (Boutput/Bmw)*(tABS/tplant) = | C10: =(C8/C7)*('Wet & Dry FGD Data Inputs'!C44/'Wet & Dry FGD Data Inputs'!C45) -> 1 | D10: fraction
A11: Total effective operating time for the scrubber (top) = | B11: CFtotal x 8760 = | C11: =C10*8760 -> 8760 | D11: hours
A12: SO2 Removal Efficiency (EF) = | B12: (SO2in - SO2out)/SO2in = | C12: =((C16-'Wet & Dry FGD Data Inputs'!C17)/C16)*100 -> 95 | D12: percent
A13: SO2 removed per hour = | B13: SO2in x EF x QB = | C13: =(C12/100)*C16*'WFGD Design Parameters'!C6 -> 56.164 | D13: lb/hour
A14: Total SO2 removed per year = | B14: (SO2in x EF x QB x top)/2000 = | C14: =C13*C11/2000 -> 245.99832 | D14: tons/year
A15: Coal Factor (CoalF) = | B15: 1 for bituminous; 1.05 for sub-bituminous; 1.07 for lignite (weighted average is used for coal blends) | C15: =IF('Wet & Dry FGD Data Inputs'!S14=1," ",(IF('Wet & Dry FGD Data Inputs'!S14=2,1,(IF('Wet & Dry FGD Data Inputs'!S14=3,1.05,(IF('Wet & Dry FGD Data Inputs'!S14=4,1.07,L15))))))) -> 1.05 | L15: =((1*'Wet & Dry FGD Data Inputs'!C23)+(1.05*'Wet & Dry FGD Data Inputs'!C24)+(1.07*'Wet & Dry FGD Data Inputs'!C25))/SUM('Wet & Dry FGD Data Inputs'!C23:C25) -> 
A16: Inlet SO2 Emissions (SO2in) = | B16: =IF('Wet & Dry FGD Data Inputs'!H15>0,"Value entered by user","(Percent Sulfur/100) x (64/32) x 1,000,000)/Heat Input (Btu/Hour) =") -> Value entered by user | C16: =IF(OR('Wet & Dry FGD Data Inputs'!H15=" ",'Wet & Dry FGD Data Inputs'!H15=0),(('Wet & Dry FGD Data Inputs'!C15/100)*(64/32)*1000000)/'Wet & Dry FGD Data Inputs'!C32,'Wet & Dry FGD Data Inputs'!H15) -> 0.2 | D16: lb/MMBtu
A17: Elevation Factor (ELEVF) = | B17: 14.7 psia/P = | C17: =IF('Wet & Dry FGD Data Inputs'!I44<500, " ", (14.7/C18)) ->  | E17: =IF('Wet & Dry FGD Data Inputs'!I44<500, "Not applicable; elevation factor does not apply to plants located at elevations below 500 feet.", " ") -> Not applicable; elevation factor does not apply to plants located at elevations below 500 feet.
A18: =IF('Wet & Dry FGD Data Inputs'!I44=0,"Atmospheric pressure at sea level (P) =","Atmospheric pressure at "&'Wet & Dry FGD Data Inputs'!I44&" feet above sea level (P) =") -> Atmospheric pressure at 446 feet above sea level (P) = | B18: 2116 x [(59-(0.00356xh)+459.7)/518.6]5.256 x (1/144)* = | C18: =(2116)*(((59-(0.00356*'Wet & Dry FGD Data Inputs'!I44)+459.7)/518.6)^5.256)*(1/144) -> 14.47422393 | D18: psia
A19: Retrofit Factor (RF) = | B19: =IF('Wet & Dry FGD Data Inputs'!S8=2,"New Construction",(IF('Wet & Dry FGD Data Inputs'!S8=3,"Retrofit to existing boiler"," "))) -> Retrofit to existing boiler | C19: =IF('Wet & Dry FGD Data Inputs'!S8=2,0.77,(IF('Wet & Dry FGD Data Inputs'!S8=3,'Wet & Dry FGD Data Inputs'!G7," "))) -> 1
A20: * Equation is from the National Aeronautics and Space Administration (NASA), Earth Atmosphere Model. Available at https://spaceflightsystems.grc.nasa.gov/education/rocket/atmos.html.
A22: Capital Recovery Factor:
A24: Parameter | B24: Equation | C24: Calculated Value
A25: Capital Recovery Factor (CRF) = | B25: i (1+ i)n/(1+ i)n - 1 = | C25: =ROUND((('Wet & Dry FGD Data Inputs'!C58/100)*((1+'Wet & Dry FGD Data Inputs'!C58/100)^'Wet & Dry FGD Data Inputs'!C51))/(((1+'Wet & Dry FGD Data Inputs'!C58/100)^'Wet & Dry FGD Data Inputs'!C51)-1),4) -> 0.0847 | D25: Wet FGD System
B26: Where n = Equipment Life and i= Interest Rate
C27: =ROUND((('Wet & Dry FGD Data Inputs'!C58/100)*((1+'Wet & Dry FGD Data Inputs'!C58/100)^'Wet & Dry FGD Data Inputs'!C52))/(((1+'Wet & Dry FGD Data Inputs'!C58/100)^'Wet & Dry FGD Data Inputs'!C52)-1),4) -> 0.213 | D27: Mercury Monitor for Wastewater Treatment System
A30: Parameter | B30: Equation | C30: Calculated Value | D30: Units
A31: Electricity Usage:
A32: Electricity Consumption (P) = | B32: 0.0112e0.155xS x CoalF x HRF x A x 1,000 = | C32: =0.0112*EXP(0.155*C16)*'WFGD Design Parameters'!C15*'WFGD Design Parameters'!C9*'Wet & Dry FGD Data Inputs'!C10*1000 -> 358.5707672 | D32: kW
A34: Water Usage:
A35: Water consumption (qwater) = | B35: [(1.674 x S + 74.68) x A x CoalF x HRF]/1,000 | C35: =(((1.674*C16)+74.68)*'Wet & Dry FGD Data Inputs'!C10*'WFGD Design Parameters'!C15*'WFGD Design Parameters'!C9)/1000 -> 2.328309362 | D35: kgallons/hour
A37: Limestone Usage:
A38: Limestone consumption rate (QLimestone) = | B38: [17.52 x A x S x HRF]/2,000] x (EF/0.98) = | C38: =((17.52*'Wet & Dry FGD Data Inputs'!C10*C16*'WFGD Design Parameters'!C9)/2000)*('WFGD Design Parameters'!C12/98) -> 0.05020373878 | D38: tons/hour
A40: Waste Generation:
A41: Waste generation rate (qwaste) = | B41: [1.811 x QLimestone x (EF/0.98) = | C41: =(1.811*C38*(C12/98)) -> 0.08813573712 | D41: tons/hour
A43: Wastewater Flow Rate:
A44: Wastewater flow rate (F) = | B44: A x (0.4 gallons/min/MW) = | C44: ='Wet & Dry FGD Data Inputs'!C10*0.4 -> 11.80197369 | D44: gallons/minute

Sheet WFGD Cost Estimate
A1: Wet FGD Cost Estimate
A3: Total Capital Investment (TCI)
A6: TCI = 1.3 x (ABScost + RPEcost + WHECost + BOPcost) + WWTCost
A10: Capital costs for the absorber (ABScost) = | B10: =B22 -> 8478739.378
A11: Reagent Preparation Equipment Costs (RPEcost) = | B11: =B29 -> 1839171.777
A12: Waste Handling Equipment (WHECost) = | B12: =B36 -> 758320.4289
A13: Balance of Plant Costs (BOPcost) = | B13: =B43 -> 16102837.15
A14: Wastewater Treatment Facility Costs (WWTcost) = | B14: =B51 -> 13565812.25
A15: Total Capital Investment (TCI) = | B15: =1.3*(SUM(B10:B14)) -> 52968345.29 | C15: ="in "&'Wet & Dry FGD Data Inputs'!$C$56&" dollars"&(IF('Wet & Dry FGD Data Inputs'!S19=2," with disposal at onsite landfill",IF('Wet & Dry FGD Data Inputs'!S19=3," with disposal at offsite landfill"," "))) -> in 2022 dollars with disposal at offsite landfill
F17: RF | G17: =IF('Wet & Dry FGD Data Inputs'!S8=3,'Wet & Dry FGD Data Inputs'!G7,(IF('Wet & Dry FGD Data Inputs'!S8=2,0.77,0))) -> 1
A18: Wet FGD Capital Costs (ABScost) | F18: ELEVF | G18: =IF('Wet & Dry FGD Data Inputs'!I44<500, 1,#REF!) -> 1
F19: CEPCI | G19: ='Wet & Dry FGD Data Inputs'!C57/'Wet & Dry FGD Data Inputs'!F57 -> 1.306996493
A20: ABScost = 584,000 x (A)0.716 x (CoalF x HRF)0.6 x (S/2)0.02 x ELEVF x RF
A22: Wet FGD Capital Costs (ABScost) = | B22: =584000*('Wet & Dry FGD Data Inputs'!C10^0.716)*(('WFGD Design Parameters'!C15*'WFGD Design Parameters'!C9)^0.6)*(('WFGD Design Parameters'!C16/2)^0.02)*G18*G17*G19 -> 8478739.378 | C22: ="in "&'Wet & Dry FGD Data Inputs'!$C$56 & " dollars" -> in 2022 dollars
A25: Reagent Preparation Costs (RPEcost)
A27: RPEcost = 202,000 x A0.716 x (S x HRF)0.3 x RF
A29: Reagent Preparation (RPEcost) = | B29: =202000*('Wet & Dry FGD Data Inputs'!C10^0.716)*(('WFGD Design Parameters'!C16*'WFGD Design Parameters'!C9)^0.3)*G17*G19 -> 1839171.777 | C29: ="in "&'Wet & Dry FGD Data Inputs'!$C$56 & " dollars" -> in 2022 dollars
A32: Waste Handling Equipment (WHECost)
A34: WHEcost = 106,000 x A0.716 x (S x HRF)0.45 x RF
A36: Waste Recycling/Handling (WHEcost) = | B36: =106000*('Wet & Dry FGD Data Inputs'!C10^0.716)*(('WFGD Design Parameters'!C16*'WFGD Design Parameters'!C9)^0.45)*G17*G19 -> 758320.4289 | C36: ="in "&'Wet & Dry FGD Data Inputs'!$C$56 & " dollars" -> in 2022 dollars
A39: Balance of Plant Costs (BOPcost)
A41: BOPcost = 1,070,000 x (A)0.716 x (CoalF x HRF)0.4 x ELEVF x RF
A43: Balance of Plant Costs (BOPcost) = | B43: =1070000*('Wet & Dry FGD Data Inputs'!C10^0.716)*(('WFGD Design Parameters'!C15*'WFGD Design Parameters'!C9)^0.4)*G18*G17*G19 -> 16102837.15 | C43: ="in "&'Wet & Dry FGD Data Inputs'!$C$56 & " dollars" -> in 2022 dollars
A45: Wastewater Treatment Facility Costs (WWTcost)
A46: Wastewater Treatment Facility Costs with Onsite Landfill
A47: WWTcost = (41.36 F + 11,157,588) x RF x 0.898
A48: Wastewater Treatement Facility Costs with Offsite Landfill
A49: WWTcost = (41.16 F + 11,557,843) x RF x 0.898
A51: Wastewater Treatment Facility Costs (WWTcost) = | B51: =IF('Wet & Dry FGD Data Inputs'!S19=2,((41.36*'WFGD Design Parameters'!C44)+11157588)*0.898*G17*G19,(IF('Wet & Dry FGD Data Inputs'!S19=3,((41.16*'WFGD Design Parameters'!C44)+11557843)*0.898*G17*G19," "))) -> 13565812.25 | C51: ="in "&'Wet & Dry FGD Data Inputs'!$C$56&" dollars"&(IF('Wet & Dry FGD Data Inputs'!S19=2," with disposal at onsite landfill",IF('Wet & Dry FGD Data Inputs'!S19=3," with disposal at offsite landfill"," "))) -> in 2022 dollars with disposal at offsite landfill
A54: Total Annual Cost (TAC)
A55: TAC = Direct Annual Costs + Indirect Annual Costs
A57: Direct Annual Costs (DAC) = | B57: =C71 -> 3075589.642
A58: Indirect Annual Costs (IDAC) = | B58: =C77 -> 4514298.748
A59: Total annual costs (TAC) = DAC + IDAC | B59: =B57+B58 -> 7589888.39 | C59: ="in "&'Wet & Dry FGD Data Inputs'!$C$56 & " dollars" -> in 2022 dollars
A61: Direct Annual Costs (DAC)
A62: DAC = Annual Maintenance Cost + Annual Operator Cost + Annual Reagent Cost + Annual Make-up Water Cost + Annual Waste Disposal Cost + Annual Auxiliary Power Cost + Annual Wastewater Treatment Cost
A63: Annual Maintenance Cost = | B63: 0.015 x TCI = | C63: =(0.015*B15) -> 794525.1793
A64: Annual Operator Cost = | B64: FT × 2,080 × Hourly Labor Rate | C64: ='Wet & Dry FGD Data Inputs'!C48*2080*'Wet & Dry FGD Data Inputs'!C65 -> 611520
A65: Annual Reagent Cost = | B65: Qlimestone x CostLimestone x top = | C65: ='Wet & Dry FGD Data Inputs'!C61*'WFGD Design Parameters'!C38*'WFGD Design Parameters'!C11 -> 126658.0085
A66: Annual Electricity Cost = | B66: P x Costelect x top = | C66: ='WFGD Design Parameters'!C32*'Wet & Dry FGD Data Inputs'!C63*'WFGD Design Parameters'!C11 -> 643921.3837
A67: Annual Make-up Water Cost = | B67: qwater x Costwater x top = | C67: ='WFGD Design Parameters'!C35*'Wet & Dry FGD Data Inputs'!C62*'WFGD Design Parameters'!C11*1000 -> 248219.1985
A68: Annual Waste Disposal Cost = | B68: qwaste x Costfuel x top = | C68: ='WFGD Design Parameters'!C41*'Wet & Dry FGD Data Inputs'!C64*'WFGD Design Parameters'!C11 -> 198421.7477
A69: Annual Wastewater Treatment Cost = | B69: =IF('Wet & Dry FGD Data Inputs'!S19=2,"(4.847F + 479,023) x 0.958 x CFtotal =", (IF('Wet & Dry FGD Data Inputs'!S19=3,"(6.3225F + 472,080) x 0.958 x CFtotal x ESC ="))) -> (6.3225F + 472,080) x 0.958 x CFtotal x ESC = | C69: =IF('Wet & Dry FGD Data Inputs'!S19=2,((4.847*'WFGD Design Parameters'!C44)+479023)*0.958*'WFGD Design Parameters'!C10,(IF('Wet & Dry FGD Data Inputs'!S19=3,(((6.3225*'WFGD Design Parameters'!C44)+472080)*0.958*'WFGD Design Parameters'!C10)," "))) -> 452324.124 | D69: =IF('Wet & Dry FGD Data Inputs'!S19=1, " ",(IF('Wet & Dry FGD Data Inputs'!S19=2,"(with disposal at onsite landfill)", "(with disposal at offsite landfill)"))) -> (with disposal at offsite landfill)
A70: Replacement Cost for Mercury Monitor = | B70: CFmm x MMCost = | C70: ='WFGD Design Parameters'!C27*'Wet & Dry FGD Data Inputs'!C66 -> 0 | D70: ="(replaced once every "&'Wet & Dry FGD Data Inputs'!C52&" years.)" -> (replaced once every 6 years.)
A71: Direct Annual Cost = | C71: =SUM(C63:C70) -> 3075589.642 | D71: ="in "&'Wet & Dry FGD Data Inputs'!$C$56 & " dollars" -> in 2022 dollars
A73: Indirect Annual Cost (IDAC)
A74: IDAC = Administrative Charges + Capital Recovery Costs
A75: Administrative Charges (AC) = | B75: 0.03 x (Annual Operator Cost + 0.4(Annual Maintenance Cost)) = | C75: =0.03*(C64+(0.4)*(C63)) -> 27879.90215
A76: Capital Recovery Costs (CR)= | B76: CRF x TCI = | C76: ='WFGD Design Parameters'!C25*B15 -> 4486418.846
A77: Indirect Annual Cost (IDAC) = | B77: AC + CR = | C77: =C75+C76 -> 4514298.748 | D77: ="in "&'Wet & Dry FGD Data Inputs'!$C$56 & " dollars" -> in 2022 dollars
A80: Cost Effectiveness
A82: Cost Effectiveness = Total Annual Cost/ SO2 Removed/year
A83: Total Annual Cost (TAC) = | B83: =B59 -> 7589888.39 | C83: ="per year in "&'Wet & Dry FGD Data Inputs'!$C$56 & " dollars" -> per year in 2022 dollars
A84: SO2 Removed = | B84: ='WFGD Design Parameters'!C14 -> 245.99832 | C84: tons/year
A85: Cost Effectiveness = | B85: =B83/B84 -> 30853.41554 | C85: per ton of SO2 removed in | D85: ='Wet & Dry FGD Data Inputs'!$C$56 & " dollars" -> 2022 dollars

Sheet Appendix
A1: Typical Costs for Random Packing Materials (1991$) | H1: Physical Properties of Common Pollutants
A2: Nominal Diameter (inches) | B2: Construction Material | C2: Packing Type | D2: Packing cost ($/ft3) | H2: Pollutant | I2: Molecular Weight | J2: Diffusivity in Air at 25°C (cm2/sec) | K2: Diffusivity in Water at 20°C (cm2/sec x 105)
D3: <100 ft3 | E3: >100 ft3
A4: 1 | B4: 304 stainless steel | C4: Pall rings, Raschig rings, Ballast rings | D4: 70-109 | E4: 65-99 | H4: Ammonia | I4: 17 | J4: 0.236 | K4: 1.76
A5: 1 | B5: Ceramic | C5: Raschig rings, Berl saddles | D5: 33-44 | E5: 26-36 | H5: Methanol | I5: 32 | J5: 0.159 | K5: 1.28
A6: 1 | B6: Polypropylene | C6: Tri-PakÒ, Pall rings, Ballast rings, Flexisaddles | D6: 14-37 | E6: 1934-12-01 | H6: Ethyl Alcohol | I6: 46 | J6: 0.119 | K6: 1
A7: 2 | B7: Ceramic | C7: Berl saddles, Raschig rings | D7: 13-32 | E7: 2021-10-30 | H7: Propyl Alcohol | I7: 60 | J7: 0.1 | K7: 0.87
A8: 2 | B8: Polypropylene | C8: Tri-PacÒ, LanpacÒ, Flexiring, Flexisaddle TelleretteÒ | D8: 2021-03-20 | E8: 2021-05-19 | H8: Butyl Alcohol | I8: 74 | J8: 0.09 | K8: 0.77
A9: 3.5 | B9: 304 stainless steel | C9: Ballast rings | D9: 30 | E9: 27 | H9: Acetic Acid | I9: 60 | J9: 0.133 | K9: 0.88
A10: 3.5 | B10: Polypropylene | C10: Tri-packÒ, LanpacÒ, Ballast rings | D10: 2021-06-14 | E10: 2021-06-12 | H10: Hydrogen Chloride | I10: 36 | J10: 0.187 | K10: 2.64
H11: Hydrogen Bromide | I11: 36 | J11: 0.129 | K11: 1.93
A12: Typical Packing Factors for Various Packing Materials for Wet Packed Tower Absorbers | H12: Hydrogen Fluoride | I12: 20 | J12: 0.753 | K12: 3.33
A13: Packing Type | B13: Construction Level | C13: Nominal Diameter (inches) | D13: Fp | E13: a
A14: Raschig rings | B14: Ceramic | C14: 0.5 | D14: 640 | E14: 111
C15: 0.625 | D15: 380 | E15: 100
C16: 0.75 | D16: 255 | E16: 80
C17: 1 | D17: 160 | E17: 58
C18: 1.5 | D18: 95 | E18: 38
C19: 2 | D19: 65 | E19: 28
C20: 3 | D20: 37
A21: Raschig rings | B21: Metal | C21: 0.5 | D21: 410 | E21: 118
C22: 0.625 | D22: 290
C23: 0.75 | D23: 230 | E23: 72
C24: 1 | D24: 137 | E24: 57
C25: 1.5 | D25: 83 | E25: 41
C26: 2 | D26: 57 | E26: 31
C27: 3 | D27: 32 | E27: 21
A28: Pall rings | B28: Metal | C28: 0.625 | D28: 70 | E28: 131
C29: 1 | D29: 48 | E29: 66
C30: 1.5 | D30: 28 | E30: 48
C31: 2 | D31: 20 | E31: 36
C32: 3.5 | D32: 16
A33: Pall rings | B33: Polypropylene | C33: 0.625 | D33: 97 | E33: 110
C34: 1 | D34: 52 | E34: 63
C35: 1.5 | D35: 32 | E35: 39
C36: 2 | D36: 25 | E36: 31
A37: Berl saddles | B37: Ceramic | C37: 0.5 | D37: 240 | E37: 142
C38: 0.75 | D38: 170 | E38: 82
C39: 1 | D39: 110 | E39: 76
C40: 1.5 | D40: 65 | E40: 44
C41: 2 | D41: 45 | E41: 32
A42: Intalox saddles | B42: Ceramic | C42: 0.5 | D42: 200 | E42: 190
C43: 0.75 | D43: 145 | E43: 102
C44: 1 | D44: 98 | E44: 78
C45: 1.5 | D45: 52 | E45: 60
C46: 2 | D46: 40 | E46: 36
C47: 3 | D47: 22
A48: Tri-Packs® | B48: Plastic | C48: 2 | D48: 16 | E48: 48
C49: 3.5 | D49: 12 | E49: 38
A51: Packing Constants Used to Estimate HG For Wet Packed Tower Absorbers
A52: Packing Type | B52: Size (inches) | C52: Packing Constants | F52: Applicable Rangea
C53: α | D53: Β | E53: γ | F53: Gsfr | G53: Lsfr
A54: Raschig Rings | B54: 0.625 | C54: 2.32 | D54: 0.45 | E54: 0.47 | F54: 200-500 | G54: 500-1,500
B55: 1 | C55: 7 | D55: 0.39 | E55: 0.58 | F55: 200-800 | G55: 400-500
B56: 1 | C56: 6.41 | D56: 0.32 | E56: 0.51 | F56: 200-600 | G56: 500-4,500
B57: 1.5 | C57: 1.73 | D57: 0.38 | E57: 0.66 | F57: 200-700 | G57: 500-1,500
B58: 1.5 | C58: 2.58 | D58: 0.38 | E58: 0.4 | F58: 200-700 | G58: 1,500-4,500
B59: 2 | C59: 3.82 | D59: 0.41 | E59: 0.45 | F59: 200-800 | G59: 500-4,500
A60: Berl Saddles | B60: 0.5 | C60: 32.4 | D60: 0.3 | E60: 0.74 | F60: 200-700 | G60: 500-1,500
B61: 0.5 | C61: 0.81 | D61: 0.3 | E61: 0.24 | F61: 200-700 | G61: 1,500-4,500
B62: 1 | C62: 1.97 | D62: 0.36 | E62: 0.4 | F62: 200-800 | G62: 400-4,500
B63: 1.5 | C63: 5.05 | D63: 0.32 | E63: 0.45 | F63: 200-1,000 | G63: 400-4,500
A64: Partition Rings | B64: 3 | C64: 640 | D64: 0.58 | E64: 1.06 | F64: 150-900 | G64: 3,000-10,000
A65: LanPac® | B65: 2.3 | C65: 7.6 | D65: 0.33 | E65: -0.48 | F65: 400-3,000 | G65: 500-8,000
A66: Tri-Packs® | B66: 2 | C66: 1.4 | D66: 0.33 | E66: 0.4 | F66: 100-900 | G66: 500-10,000
B67: 3.5 | C67: 1.7 | D67: 0.33 | E67: 0.45 | F67: 100-2,000 | G67: 500-10,000
A68: a Units of lb/hr-ft2
A70: Packing Constants Used to Estimate HL For Wet Packed Tower Absorbers
A71: Packing Type | B71: Size (inches) | C71: Packing Constants | E71: Applicable Rangea
C72: φ | D72: b | E72: Lasfr
A73: Raschig Rings | B73: 0.375 | C73: 0.00182 | D73: 0.46 | E73: 400-15,000
B74: 1 | C74: 0.00357 | D74: 0.35 | E74: 400-15,000
B75: 1.5 | C75: 0.01 | D75: 0.22 | E75: 400-15,000
B76: 2.5 | C76: 0.0111 | D76: 0.22 | E76: 400-15,000
B77: 2 | C77: 0.0125 | D77: 0.22 | E77: 400-15,000
A78: Berl Saddles | B78: 0.5 | C78: 0.00666 | D78: 0.28 | E78: 400-15,000
B79: 1 | C79: 0.00588 | D79: 0.28 | E79: 400-15,000
B80: 1.5 | C80: 0.00625 | D80: 0.28 | E80: 400-15,000
A81: Partition Rings | B81: 3 | C81: 0.0625 | D81: 0.09 | E81: 3,000-14,000
A82: LanPac® | B82: 2.3 | C82: 0.0039 | D82: 0.33 | E82: 500-8,000
B83: 3.5 | C83: 0.0042 | D83: 0.33 | E83: 500-8,000
A84: Tri-Packs® | B84: 2 | C84: 0.0031 | D84: 0.33 | E84: 500-10,000
B85: 3.5 | C85: 0.004 | D85: 0.33 | E85: 500-10,000
A86: a Units of lb/hr-ft2
A89: Packing Constants Used to Estimate Pressure Drop For Wet Packed Tower Absorbers
A90: Packing Type | B90: Construction Material | C90: Nominal Diameter (inches) | D90: c | E90: j
A91: Raschig rings | B91: ceramic | C91: 0.5 | D91: 3.1 | E91: 0.41
C92: 0.75 | D92: 1.34 | E92: 0.26
C93: 1 | D93: 0.97 | E93: 0.25
C94: 1.25 | D94: 0.57 | E94: 0.23
C95: 1.5 | D95: 0.39 | E95: 0.23
C96: 2 | D96: 0.24 | E96: 0.17
A97: Raschig rings | B97: metal | C97: 0.625 | D97: 1.2 | E97: 0.28
C98: 1 | D98: 0.42 | E98: 0.21
C99: 1.5 | D99: 0.29 | E99: 0.2
C100: 2 | D100: 0.23 | E100: 0.135
A101: Pall rings | B101: metal | C101: 0.625 | D101: 0.43 | E101: 0.17
C102: 1 | D102: 0.15 | E102: 0.16
C103: 1.5 | D103: 0.08 | E103: 0.15
C104: 2 | D104: 0.06 | E104: 0.12
A105: Berl saddles | B105: ceramic | C105: 0.5 | D105: 1.2 | E105: 0.21
C106: 0.75 | D106: 0.62 | E106: 0.17
C107: 1 | D107: 0.39 | E107: 0.17
C108: 1.5 | D108: 0.21 | E108: 0.13
A109: Intalox saddles | B109: ceramic | C109: 0.5 | D109: 0.82 | E109: 0.2
C110: 0.75 | D110: 0.28 | E110: 0.16
C111: 1 | D111: 0.31 | E111: 0.16
C112: 1.5 | D112: 0.14 | E112: 0.14
A113: a Units of lb/hr-ft2
